Cogmind - Beta 15 @@@ ROGUE MODE // 2025.08.01 @ 19:04:10 Player: Cracklepappy Result: Destroyed by X-87 Electro with Compact HERF Cannon Performance ------------- Evolutions (9) 4500 Regions Visited (26) 5200 Robots Destroyed (622) 3110 Value Destroyed (29377) 29377 Prototype IDs (84) 1680 Alien Tech Used (3) 600 Bonus (21441) 21441 TOTAL SCORE: 65908 Bonus ------- Triggered High Security 500 High Alert Combat Kills 9751 Follower Combat Kills 2114 Forged Quantum Companion 1000 Entered Garrisons 1000 Used RIF Installer 2500 Registered with UFD 300 Met Optimus in HQ 500 Met Zhirov 300 Found Hidden Lab 3000 Scanned by Researcher 500 Pursued by Intercept 500 Friendly Fire -524 Cogmind --------- Core Integrity 0/1600 Matter 286/300 Energy 100/100 System Corruption 40% Temperature Cool (0) Movement Core (50) Location -1/Access Parts ------- > --- POWER (3) -------- (None) > --- PROPULSION (4) --- (None) > --- UTILITY (14) ----- (None) > --- WEAPON (4) ------- (None) > --- INVENTORY (5) ---- Experimental Heat Sink Experimental Energy Well (600) Advanced Weapon Cycler Long-range Tractor Beam Heavy Rocket Launcher Peak State ------------ > --- POWER ------------ Light Quantum Reactor Light Quantum Reactor Light Quantum Reactor > --- PROPULSION ------- Overtuned Huge Scrapsphere Centrium Wheel Centrium Wheel > --- UTILITY ---------- Scrap Suit Huge Storage Unit Advanced Melee Analysis Suite Experimental Melee Analysis Suite Experimental Melee Analysis Suite Experimental Melee Analysis Suite Experimental Melee Analysis Suite Experimental Melee Analysis Suite Experimental Core Analyzer Experimental Core Analyzer Graphene Brace AEGIS Remote Shield Quantum Router > --- WEAPON ----------- Enhanced Nova Cannon Molecular Scythe Quantum Companion Enhanced Force Lance > --- INVENTORY -------- Light Antimatter Reactor Micro Antimatter Reactor Light Quantum Reactor Myomer Leg Wheel Wheel Experimental Power Amplifier Advanced Heat Sink Advanced Heat Sink Advanced Heat Sink Experimental Energy Well Advanced Weapon Cycler Centrium Medium Armor Plating A0-MCA's Component Scanner Long-range Tractor Beam Trap Extractor Transdimensional Reconstructor Railgun Heavy Gauss Cannon Gamma Bomb Array Heavy Rocket Launcher Guided Remote Datajack Improved Plasma Cutter Molecular Scythe [Rating: 208] Favorites ----------- Power Reinforced Quantum Reactor Engine Heavy Ion Engine Power Core Micro Fission Core Reactor Reinforced Quantum Reactor Propulsion Armored Wheel Wheel Armored Wheel Utility Experimental Core Analyzer Device Graphene Brace Storage Huge Storage Unit Processor Experimental Core Analyzer Hackware Quantum Router Protection Medium Armor Plating Weapon Improved Assault Rifle Energy Gun Quantum Rifle Energy Cannon Enhanced Nova Cannon Ballistic Gun Improved Assault Rifle Ballistic Cannon Enhanced Hardcell Cannon Launcher Grenade Launcher Special Weapon Improved Remote Datajack Impact Weapon Shock Maul Slashing Weapon Quantum Companion Piercing Weapon Enhanced Force Lance Special Melee Weapon Datajack Build | -11 -10 -10 -9 -9 -9 -9 -9 -6 -6 -6 -5 -5 -5 -5 -4 -4 -4 -4 -4 -4 -3 -3 -3 -3 -2 -1 ------- Run | Yrd Mat Min Mat Sto Gar Rec Scr Fac Gar Fac Fac Gar Fac Gar Fac Gar Fac Upp Upp Zhi Pro Res Arm Lab Res Acc Slots Evolved 18 | . . . 2 . . . . 6 . . 2 . . . 2 . . . . . . 2 . . 2 2 Power 2 | . . . . . . . . . . . . . . . 1 . . . . . . . . . 1 . Propulsion 2 | . . . . . . . . 2 . . . . . . . . . . . . . . . . . . Utility 12 | . . . . . . . . 4 . . 2 . . . 1 . . . . . . 2 . . 1 2 Weapon 2 | . . . 2 . . . . . . . . . . . . . . . . . . . . . . . Parts Attached 360 | 10 17 10 21 15 6 . 6 4 31 30 11 10 19 22 6 23 3 3 3 1 . 14 17 6 31 41 Power 48 | 2 1 1 2 1 1 . . . 4 1 . . . 1 1 3 1 . . 1 . . 3 . 11 14 Engine 11 | 2 1 1 2 1 1 . . . 2 . . . . . . . . . . . . . . . . 1 Core 2 | . . . . . . . . . . . . . . 1 . 1 . . . . . . . . . . Reactor 35 | . . . . . . . . . 2 1 . . . . 1 2 1 . . 1 . . 3 . 11 13 Propulsion 84 | 3 7 5 4 2 1 . . 2 6 21 3 2 6 6 2 2 . . . . . 2 2 . 2 6 Treads . | . . . . . . . . . . . . . . . . . . . . . . . . . . . Leg . | . . . . . . . . . . . . . . . . . . . . . . . . . . . Wheel 84 | 3 7 5 4 2 1 . . 2 6 21 3 2 6 6 2 2 . . . . . 2 2 . 2 6 Hover . | . . . . . . . . . . . . . . . . . . . . . . . . . . . Flight . | . . . . . . . . . . . . . . . . . . . . . . . . . . . Utility 100 | 2 5 3 5 3 3 . 2 2 9 2 6 2 8 6 1 6 2 . 1 . . 5 7 2 10 8 Device 46 | 1 2 1 3 2 2 . 2 . 5 1 2 2 . 3 1 4 . . 1 . . 1 2 2 5 4 Storage 7 | 1 3 . . . . . . . 1 . 1 . 1 . . . . . . . . . . . . . Processor 23 | . . . . 1 1 . . 1 3 . 2 . 2 1 . . 1 . . . . 1 5 . 1 4 Hackware 15 | . . . . . . . . 1 . 1 1 . 4 . . 2 1 . . . . 3 . . 2 . Protection 9 | . . 2 2 . . . . . . . . . 1 2 . . . . . . . . . . 2 . Artifact . | . . . . . . . . . . . . . . . . . . . . . . . . . . . Weapon 128 | 3 4 1 10 9 1 . 4 . 12 6 2 6 5 9 2 12 . 3 2 . . 7 5 4 8 13 Energy Gun 7 | 1 . . . 1 . . . . . . . . . 1 . . . . 2 . . . . 2 . . Energy Cannon 15 | . 1 . 2 . . . . . . . . 1 . . . 3 . 2 . . . 1 2 . 3 . Ballistic Gun 52 | 2 . . 6 6 . . 1 . 7 4 1 3 . 4 1 4 . 1 . . . 5 . . 5 2 Ballistic Cannon 28 | . 2 . 1 . . . 1 . 4 . . 1 3 2 . 5 . . . . . . 3 . . 6 Launcher 4 | . . 1 . . . . . . . . 1 . . 1 . . . . . . . . . . . 1 Special Weapon 12 | . . . 1 . 1 . 1 . 1 1 . 1 2 . 1 . . . . . . 1 . 2 . . Impact Weapon 2 | . . . . 2 . . . . . . . . . . . . . . . . . . . . . . Slashing Weapon 5 | . . . . . . . 1 . . . . . . 1 . . . . . . . . . . . 3 Piercing Weapon 1 | . . . . . . . . . . . . . . . . . . . . . . . . . . 1 Special Melee Weapon 2 | . 1 . . . . . . . . 1 . . . . . . . . . . . . . . . . Unidentified Prototypes 22 | . . . 3 2 . . 1 . . . 1 . . . . . . . . 2 . . 3 4 3 3 Parts Lost 115 | . 3 1 . 1 . . . . 9 13 . 12 2 9 . 2 . 2 2 . . 6 4 2 15 32 Power 17 | . 1 . . . . . . . 1 . . . . . . . . . . . . . 3 . 4 8 Propulsion 39 | . 1 . . . . . . . 6 10 . 5 1 5 . . . . . . . 1 1 1 1 7 Utility 25 | . . 1 . 1 . . . . 1 . . 2 . 1 . 1 . . 1 . . 2 . 1 4 10 Weapon 34 | . 1 . . . . . . . 1 3 . 5 1 3 . 1 . 2 1 . . 3 . . 6 7 Highest Loss Streak 14 | . 3 1 . 1 . . . . 4 5 . 7 1 3 . 2 . 2 1 . . 3 2 2 8 14 To Critical Strikes 1 | . . . . . . . . . 1 . . . . . . . . . . . . . . . . . Average Backups 23 | 5 18 24 24 23 23 24 22 20 27 28 24 23 23 22 22 21 21 21 21 23 23 22 21 21 21 23 Power . | . 1 1 1 1 . . . . 1 1 1 1 1 1 1 1 1 1 1 1 1 1 1 . . . Propulsion 2 | 2 4 4 5 4 3 3 3 2 . 1 2 . . 1 . 1 1 2 2 2 2 2 2 2 2 3 Utility 12 | 1 5 9 9 8 9 8 8 8 15 17 15 18 17 15 15 14 13 13 14 14 14 12 10 10 12 10 Weapon 5 | . 6 8 7 8 9 10 9 6 7 4 2 . 1 1 2 2 4 3 2 3 3 3 4 4 3 5 Tool/Special . | . . . . . . . . . . . . . . . . . . . . . . . . . . . Unused Backups 120 | 2 5 6 20 5 1 2 2 . 10 3 4 5 3 5 . 9 2 . 2 3 . 3 5 1 2 20 Power 5 | . 1 . 2 1 . . . . . . . . . . . . . . . 1 . . . . . . Propulsion 21 | 2 2 1 3 . . . . . . 1 . . . . . 4 . . . . . 1 . . . 7 Utility 63 | . 1 3 7 1 1 . 1 . 7 2 3 3 2 4 . 5 2 . 1 2 . 2 3 1 2 10 Weapon 29 | . 1 2 8 3 . 2 1 . 3 . . 2 . 1 . . . . 1 . . . 2 . . 3 Tool/Special 2 | . . . . . . . . . . . 1 . 1 . . . . . . . . . . . . . Average Slot Usage (%) 89 | . 99 99 99 100 100 98 76 83 87 85 98 83 85 93 98 84 84 83 84 68 84 86 91 91 84 86 Engine 4 | . 13 14 11 11 11 11 11 6 3 2 . . . . . . . . . . . . . . . . Reactor 4 | . . . . . . . . . 2 3 5 5 5 2 5 7 10 10 10 10 10 9 6 9 11 10 Wheel 17 | . 27 28 22 22 22 22 22 25 23 23 23 7 12 18 19 10 10 10 10 10 10 9 13 11 8 10 Device 6 | . 12 . . 3 9 . 1 6 6 5 10 8 6 7 14 10 9 5 10 9 10 14 6 8 7 7 Storage 7 | . 14 14 11 11 11 11 11 6 6 6 5 5 5 5 5 5 5 5 5 5 5 4 4 4 4 3 Processor 17 | . . . . . 1 11 8 5 17 20 28 29 26 27 26 26 26 30 26 26 26 24 35 38 28 33 Protection 2 | . 1 13 10 6 . . . . . . . . 2 3 . . . . . . . . . . 1 1 Energy Cannon 1 | . 6 . 4 . . . . . . . . 2 . . . 1 . 1 6 . 4 3 8 4 4 1 Ballistic Gun 12 | . 2 . 32 43 39 42 13 20 7 10 16 10 2 6 10 4 . . 3 . . 6 3 . 5 1 Ballistic Cannon 5 | . 13 27 6 . . . . . 10 5 . 1 12 8 3 8 14 12 2 . . . 1 9 . 2 Slashing Weapon 3 | . . . . . . . 2 6 5 5 5 5 5 5 5 5 5 5 5 5 5 4 4 4 4 6 Peak Build Rating 208 | 7 11 15 27 34 34 28 34 42 96 97 112 113 117 109 125 151 152 150 150 147 147 161 170 184 194 208 Average Rating 88 | 5 9 11 23 28 31 27 21 41 81 93 109 98 106 105 123 143 150 149 147 123 146 152 154 177 185 194 On Entrance 92 | . 7 11 12 27 31 28 16 34 42 95 96 111 97 105 107 124 150 150 148 149 147 147 132 168 183 190 Naked Turns 2 | . . . . . . . . . . . . . . . . . . . . . . . . . . 2 Heaviest Build 209 | 13 93 96 108 107 106 100 103 102 200 209 195 135 162 166 141 177 177 175 170 145 145 167 174 150 191 185 Greatest Support 64 | 26 20 26 24 24 24 24 24 48 48 64 64 64 58 54 58 58 40 40 40 40 40 52 46 36 46 52 Greatest Overweight (x) 19 | . 8 4 5 4 4 4 4 2 8 19 4 8 8 5 3 4 4 4 4 3 3 8 6 7 9 9 Average Overweight (x) 3 | . 2 3 4 4 4 3 3 2 4 4 2 6 2 2 2 3 4 3 4 2 3 4 4 5 3 3 Largest Inventory Capacity 30 | 8 25 25 25 25 25 25 25 25 30 30 30 25 25 25 25 25 25 25 25 25 25 25 25 25 25 25 Average Capacity 25 | 7 19 25 25 25 25 25 25 25 29 30 25 25 25 25 25 25 25 25 25 25 25 25 25 25 25 24 Most Carried 30 | 8 25 25 25 25 25 25 25 24 30 30 30 25 25 25 25 25 25 25 25 25 25 25 25 25 25 25 Average Carried 24 | 5 18 24 24 24 24 24 24 21 29 29 25 24 24 24 24 24 24 24 24 24 25 24 24 24 24 24 Final Capacity 30 | 8 25 25 25 25 25 25 25 25 30 30 25 25 25 25 25 25 25 25 25 25 25 25 25 25 25 5 Final Carried 30 | 8 25 25 25 25 25 25 25 22 30 30 25 24 23 25 25 25 25 24 25 25 25 25 24 25 25 5 Class Distribution -------------------- 28% | Scavenger-Gunner 17% | Scavenger-Scrapper 9% | Mutant 8% | Tank 7% | Commander-Gunner 7% | Commander-Mutant 6% | Gunner 5% | Hauler-Gunner 3% | Scavenger-Gladiator Dominant Class ---------------- Mutant | -10/Materials Mutant | -10/Mines Tank | -9/Materials Tank | -9/Storage Gunner | -9/Garrison Commander-Gunner | -9/Recycling Commander-Mutant | -9/Scraptown Commander-Gunner | -6/Factory Hauler-Gunner | -6/Garrison Scavenger-Gunner | -6/Factory Scavenger-Gunner | -5/Factory Scavenger-Gunner | -5/Garrison Bothacker-Gunner | -5/Factory Scavenger-Gunner | -5/Garrison Scavenger-Gunner | -4/Factory Scavenger-Scrapper | -4/Garrison Scavenger-Scrapper | -4/Factory Scavenger-Scrapper | -4/Upper Caves Scavenger-Scrapper | -4/Upper Caves Scavenger-Scrapper | -4/Zhirov Scavenger-Scrapper | -3/Proximity Caves Scavenger-Gunner | -3/Research Scavenger-Gunner | -3/Armory Scavenger-Gunner | -3/Lab Scavenger-Scrapper | -2/Research Scavenger-Gladiator | -1/Access Resources | -11 -10 -10 -9 -9 -9 -9 -9 -6 -6 -6 -5 -5 -5 -5 -4 -4 -4 -4 -4 -4 -3 -3 -3 -3 -2 -1 ----------- Run | Yrd Mat Min Mat Sto Gar Rec Scr Fac Gar Fac Fac Gar Fac Gar Fac Gar Fac Upp Upp Zhi Pro Res Arm Lab Res Acc Matter Collected 15111 | 372 592 458 1222 945 830 219 148 . 1378 1842 401 482 533 1054 140 1147 252 57 63 50 88 520 229 39 844 1206 Remotely 132 | . . . . . . . . . . . . . . . . . . . . . . . . . . 132 Salvage Created 34600 | 169 842 272 1915 1509 1053 277 . . 1102 2759 1168 750 1155 2509 648 2810 1081 333 644 356 130 1347 523 75 3766 7407 Parts 1737 | 23 46 15 134 111 61 24 . . 60 152 45 40 57 108 17 116 28 17 39 4 6 87 52 6 183 306 Haulers Intercepted 24 | . 2 . 6 5 . . . . . 2 1 . . . 1 . 1 . . . . . . . 2 4 Recyclers Shooed 9 | . 1 1 . . . . . . . 1 . . 1 . . . . . . . . 1 . . . 4 Parts Field Recycled . | . . . . . . . . . . . . . . . . . . . . . . . . . . . Retrieved Matter . | . . . . . . . . . . . . . . . . . . . . . . . . . . . Parts Self-Destructed 49 | . . . . . . . . . . . . . . . . . . 10 31 2 6 . . . . . Prevented . | . . . . . . . . . . . . . . . . . . . . . . . . . . . Kills | -11 -10 -10 -9 -9 -9 -9 -9 -6 -6 -6 -5 -5 -5 -5 -4 -4 -4 -4 -4 -4 -3 -3 -3 -3 -2 -1 ------- Run | Yrd Mat Min Mat Sto Gar Rec Scr Fac Gar Fac Fac Gar Fac Gar Fac Gar Fac Upp Upp Zhi Pro Res Arm Lab Res Acc Combat Hostiles Destroyed 437 | . 12 10 31 20 22 3 . . 24 31 7 14 17 29 4 33 14 4 10 . 2 14 8 1 46 81 Melee 218 | . . . . . . . . . 7 6 4 4 16 18 3 27 6 4 9 . 2 11 6 1 36 58 Guns 119 | . 8 . 21 20 22 3 . . 11 14 3 4 . 1 1 1 . . . . . 2 1 . . 7 Cannons 71 | . 4 8 10 . . . . . 6 10 . 5 1 2 . 5 7 . 1 . . 1 1 . 3 7 AOE 20 | . . 2 . . . . . . . 1 . . . 8 . . . . . . . . . . 5 4 Classes Destroyed 28 | 3 6 1 2 2 . . . . 4 1 . . . 1 . 1 . 3 . . . . . . 2 2 Worker 44 | 1 1 2 4 5 . . . . . 10 2 . 3 1 1 . . . . . . 3 . . 3 8 Builder 27 | . 3 . 1 . . 2 . . . 10 . . 1 1 1 . . . . . . 5 . . 1 2 Tunneler 23 | 5 . 4 3 1 . . . . . 4 . . 1 . . . 1 . . . . . . . 3 1 Hauler 24 | . 2 . 6 5 . . . . . 2 1 . . . 1 . 1 . . . . . . . 2 4 Recycler 29 | 1 2 2 2 3 . 1 . . . 2 4 . 3 . 2 . . . . . . 2 . . . 5 Carrier 1 | . . . . . . . . . . . . . . . . . . . . . . . . . 1 . Minesweeper 2 | . . . . . . . . . . . . . . . . . . 1 1 . . . . . . . Mechanic 5 | . . . . 1 . . . . . . 1 . . . . . 1 . . . . . . . . 2 Operator 7 | . 1 . 1 . . . . . . 2 1 . . . . . 1 . . . . 1 . . . . Watcher 18 | . 2 . 4 2 . . . . . 3 . . 1 . . . 1 . . . . . . . 1 4 Swarmer 88 | . 2 3 7 4 . . . . 10 3 . 3 12 10 2 3 . 4 4 . . 2 . . 10 9 Cutter 2 | . . . . . . . . . . . . . . . . . . . . . . . . . 2 . Saboteur 4 | . . . . . . . . . . 2 . . . . . . . . . . . . . . . 2 Grunt 174 | . 10 . 13 7 13 . . . 5 18 2 6 4 9 2 19 8 . 4 . 2 2 . . 19 31 Brawler 2 | . . . 1 . . . . . . . . . . . . . . . . . . . . . 1 . Duelist 11 | . . . . 1 . . . . 1 1 . . . . . . 2 . . . . . . . 1 5 Protector 1 | . . . . . . . . . . . . . . . . . . . . . . . . . . 1 Sentry 60 | . . . 10 8 9 3 . . 3 2 3 2 1 5 . 4 2 . . . . 3 . . 3 2 Specialist 3 | . . . . . . . . . 1 . . 1 . . . 1 . . . . . . . . . . Hunter 14 | . . . . . . . . . 1 1 . 2 . 2 . 2 2 . . . . 1 . . 2 1 Programmer 56 | . . . . . . . . . 1 4 2 . 1 2 . 2 . . 2 . . 6 8 . 7 21 Heavy 3 | . . . . . . . . . 2 . . . . . . . . . . . . . . . 1 . Behemoth 3 | . . . . . . . . . . . . . . 1 . 2 . . . . . . . . . . Tracker 4 | . . . . . . . . . . . . . . . . . . . . . . . . . . 4 Combat Programmer 4 | . . . . . . . . . . . . . . . . . . . . . . . . . . 4 Striker 1 | . . . . . . . . . . . . . . . . . . . . . . . . . . 1 Scrapoid 10 | . . . . . . . . . . . . . . . . 4 . . . . . . . . 2 4 Decomposer 3 | . . . . . . . . . . . . . . . . . . . 3 . . . . . . . Samaritan 4 | . . . . . . . . . . . . . . . . . . 3 1 . . . . . . . Assembled 7 | . . 7 . . . . . . . . . . . . . . . . . . . . . . . . Mutant 1 | . . . . . . . . . . . . . . . . . . 1 . . . . . . . . Best Kill Streak 14 | 4 4 5 7 8 7 1 . . 3 10 3 3 5 8 3 6 7 4 4 . 2 5 3 1 6 14 Combat Bots Only 11 | . 3 3 6 5 7 1 . . 3 6 2 3 5 8 2 6 6 4 4 . 2 5 3 1 6 11 Max Kills in Single Turn 4 | 1 1 2 2 3 2 1 . . 1 3 1 2 1 3 1 1 2 1 1 . 1 2 1 1 4 3 Gunslinging 1 | . . . 1 1 1 . . . . 1 . . . . . . . . . . . . . . . . Exploded 4 | . . 1 . . . . . . . 1 . . . 3 . . . . . . . . . . 4 3 Melee 2 | . . . . . . . . . 1 1 1 1 1 2 1 1 1 1 1 . 1 1 1 1 1 2 Uniques/NPCs Destroyed 1 | . . . . . . . . . . . . . . . . . . . . . . . . 1 . . A5 (-3/Lab) Combat | -11 -10 -10 -9 -9 -9 -9 -9 -6 -6 -6 -5 -5 -5 -5 -4 -4 -4 -4 -4 -4 -3 -3 -3 -3 -2 -1 -------- Run | Yrd Mat Min Mat Sto Gar Rec Scr Fac Gar Fac Fac Gar Fac Gar Fac Gar Fac Upp Upp Zhi Pro Res Arm Lab Res Acc Hostile Shots Fired 2805 | . 73 43 72 68 38 8 . . 172 266 25 105 140 149 6 239 92 35 40 . 11 156 51 14 267 735 Missed 763 | . 28 13 22 16 12 2 . . 42 83 9 25 33 38 . 58 27 10 9 . 2 55 14 3 69 193 Deflected 46 | . . . . . . . . . . . . . . 3 . 9 . 2 1 . 1 2 . . 8 20 Hits 2042 | . 45 30 50 52 26 6 . . 130 183 16 80 107 111 6 181 65 25 31 . 9 101 37 11 198 542 Melee 28 | . . . . . . . . . . 2 . . . . . . 5 . . . . . . . 7 14 Projectile 2014 | . 45 30 50 52 26 6 . . 130 181 16 80 107 111 6 181 60 25 31 . 9 101 37 11 191 528 AOE 7 | . . . . . . . . . . . . . 1 1 . . . . . . . . 1 . 1 3 Critical Strikes 86 | . . 2 1 . 2 . . . 2 10 2 1 3 5 . 6 2 1 1 . 1 4 3 . 9 31 Actively Blocked 49 | . . . . . . . . . . . . 1 3 2 . 3 . . . . . 4 3 . 7 26 Part Disruptions 3 | . . . . . . . . . . . . . . . . . . . . . . . . . . 3 Damage Taken 35722 | . 495 353 575 671 363 112 . . 2402 2727 347 1393 2084 2226 63 3458 1427 387 570 15 156 1635 875 297 4929 8162 Core 5240 | . 128 83 14 84 57 12 . . 181 449 32 342 141 188 5 363 188 53 65 15 18 279 161 10 814 1558 Absorbed by Shields 6063 | . . . . . . . . . . . . . . 129 59 84 . . . . . 991 . . . 4800 Regen/Repaired (Parts) 3020 | . 64 . . . . . . . . 151 269 . 629 . . 377 516 . 56 . . 223 . . 435 300 Core Remaining (%) 49 | 100 . 15 . . . . 58 . . 25 . . . 29 . . . . . . 38 . . 59 68 . Volleys Fired 831 | 12 66 40 78 52 64 12 . . 66 71 10 53 25 52 7 46 22 3 3 . 4 56 7 8 24 50 Largest 4 | 2 2 2 4 4 4 4 . . 4 3 3 3 2 3 3 3 3 1 1 . 1 3 1 1 1 2 Hottest 334 | 40 100 60 196 92 92 92 . . 162 124 116 116 75 131 99 174 174 120 120 . 7 334 120 58 120 116 Shots Fired 1852 | 24 131 80 300 210 178 49 . . 162 175 25 82 27 73 17 86 53 3 5 . 4 77 7 7 24 53 Gun 1165 | 24 63 . 226 210 159 49 . . 104 139 24 47 1 11 15 18 . . 1 . . 30 5 . 2 37 Cannon 571 | . 68 78 70 . . . . . 56 34 . 24 7 42 . 64 51 3 4 . . 39 2 6 12 11 Launcher 14 | . . 2 . . . . . . . . . . . 5 . . . . . . . . . . 3 4 Special 102 | . . . 4 . 19 . . . 2 2 1 11 19 15 2 4 2 . . . 4 8 . 1 7 1 Kinetic 1547 | 24 48 78 272 210 159 49 . . 160 173 24 56 8 52 15 77 51 . 1 . . 29 5 6 2 48 Thermal 160 | . 46 . 28 . 19 . . . . . . . . 1 . 5 . 3 4 . . 40 2 . 12 . Explosive 14 | . . 2 . . . . . . . . . . . 5 . . . . . . . . . . 3 4 Electromagnetic 52 | . 37 . . . . . . . . . . 15 . . . . . . . . . . . . . . Robot Hit Streak 16 | 6 7 9 11 12 12 10 . . 12 16 9 14 9 14 16 6 7 . . . 5 10 2 1 7 15 Robot Miss Streak 7 | 2 4 5 6 3 5 4 . . 4 6 1 2 2 3 3 3 7 . . . . 4 2 . . 4 Penetration Max 2 | . . . . . . . . . . 2 . 2 . 1 . . . . . . . 1 . . . . Secondary Targets 15 | . . . 4 3 2 . . . 3 3 . . . . . . . . . . . . . . . . Max Gunslinging Chain 1 | . . . 1 1 1 . . . 1 1 . . . . . . . . . . . . . . . . Autonomous 43 | . . . . . . . . . . . . . . 1 . . 3 1 2 . . . 1 1 9 25 Shots Hit Robots 1763 | 17 75 43 148 132 108 31 11 . 131 143 44 59 68 111 17 104 51 15 21 7 9 60 14 15 112 217 Core Hits 880 | 8 30 24 67 52 40 10 . . 53 86 22 26 28 59 6 59 26 7 15 2 3 27 9 3 75 143 Critical Kills 13 | . . . 2 . 1 . . . 1 4 2 2 . 1 . . . . . . . . . . . . Critical Parts Destroyed 12 | . . . . . . . . . . 7 1 2 . 1 1 . . . . . . . . . . . Critical Strikes 63 | . . 1 3 . 2 . . . 1 16 7 7 2 7 1 2 4 . . . . . 2 . 2 6 Destroy 27 | . . . 2 . 1 . . . 1 11 3 5 . 3 1 . . . . . . . . . . . Blast 13 | . . 1 1 . . . . . . 5 . . . 2 . 2 2 . . . . . . . . . Sever 1 | . . . . . 1 . . . . . . . . . . . . . . . . . . . . . Melee Attacks 879 | . 1 . 1 4 32 . 11 . 52 57 31 17 62 92 8 71 30 20 27 7 5 36 12 14 108 181 Impact 34 | . . . . 3 27 . . . 4 . . . . . . . . . . . . . . . . . Slashing 820 | . . . . . . . . . 42 57 31 17 62 92 8 71 30 20 27 7 5 36 12 14 108 181 Piercing . | . . . . . . . . . . . . . . . . . . . . . . . . . . . Sneak Attacks 147 | . 1 . 1 1 5 . 11 . 7 18 11 . 9 2 5 6 1 8 5 . . 10 1 . 12 33 Combat Hostiles 7 | . . . . . . . . . 1 . 1 . 1 . . 1 . . . . . . 1 . 2 . Follow-up Attacks 20 | . . . . . . . . . 4 . . 1 2 1 . 1 . . . . . . . . 1 10 Damage Inflicted 80794 | 231 1328 829 2487 2114 1504 495 . . 3655 6509 1775 1405 2510 7078 885 6313 3246 1462 1784 867 334 3247 1062 1390 8992 19292 Guns 12975 | 231 519 . 1845 2114 1316 495 . . 1062 2199 407 429 . 203 149 194 . . . . . 411 68 . 42 1291 Cannons 12455 | . 734 747 642 . . . . . 1185 1657 . 497 101 546 . 1278 1459 83 187 . . 294 90 87 851 2017 Explosions 2530 | . 75 82 . . . . . . . 249 . . . 536 . . 161 . . . . . . . 351 1076 Melee 52646 | . . . . . . . . . 1408 2404 1368 479 2409 5793 736 4841 1626 1379 1597 867 334 2542 904 1303 7748 14908 Ramming . | . . . . . . . . . . . . . . . . . . . . . . . . . . . Kinetic 20081 | 231 470 747 2221 2114 1316 495 . . 2247 3856 407 607 101 663 149 1472 1202 . . . . 382 68 . 42 1291 Thermal 1578 | . 603 . 266 . 188 . . . . . . . . . . . 145 . . . . 323 . . 53 . Explosive 2294 | . . 82 . . . . . . . 249 . . . 536 . . . . . . . . . . 351 1076 Electromagnetic 590 | . 255 . . . . . . . . . . 319 . . . . 16 . . . . . . . . . Impact . | . . . . . . . . . . . . . . . . . . . . . . . . . . . Slashing 52646 | . . . . . . . . . 1408 2404 1368 479 2409 5793 736 4841 1626 1379 1597 867 334 2542 904 1303 7748 14908 Piercing . | . . . . . . . . . . . . . . . . . . . . . . . . . . . Phasic 3605 | . . . . . . . . . . . . . . 86 . . 257 83 187 . . . 90 87 798 2017 Highest Corruption 40 | . 1 1 4 4 4 4 . 1 1 9 1 1 3 4 . 1 1 1 4 4 4 7 17 21 12 40 Average Corruption 4 | . 1 1 3 4 4 4 . 1 1 3 1 1 1 3 . 1 1 1 2 4 4 5 12 19 4 16 Corruption Purged . | . . . . . . . . . . . . . . . . . . . . . . . . . . . Corruption Blocked . | . . . . . . . . . . . . . . . . . . . . . . . . . . . Effects 456 | . 3 15 33 29 44 15 . 1 14 43 . 6 11 34 . 5 3 7 18 2 10 15 23 15 20 90 Message Errors 117 | . . 6 12 8 9 3 . . 3 10 . . 1 11 . 2 1 3 6 . 1 4 7 4 3 23 Matter Fused 97 | . 2 2 5 9 8 7 . . 5 6 . 1 1 5 . 2 . 1 2 2 3 3 4 3 7 19 Heat Flow Errors 50 | . . . 4 2 10 . . . 1 3 . 1 3 2 . . . . 2 . 2 1 6 4 2 7 Energy Discharges 47 | . . 4 1 4 3 . . 1 2 5 . 1 1 4 . 1 . 3 3 . . . 3 1 1 9 Parts Rejected 7 | . . . 2 . . . . . . 1 . . . . . . . . . . . . . . 2 2 Parts Fused 8 | . . . . 1 1 . . . . 2 . . 1 1 . . 1 . . . . . . . 1 . Data Loss (minor) 60 | . 1 . 6 2 8 3 . . 1 7 . 2 2 4 . . . . 3 . 4 2 2 1 3 9 Data Loss (major) 18 | . . 1 . 1 . 1 . . . 3 . 1 . 3 . . . . . . . 3 . 1 1 3 Misfires 23 | . . 2 1 2 3 1 . . 2 3 . . 1 . . . . . 2 . . . . . . 6 Alerts 13 | . . . 1 . 2 . . . . 2 . . 1 4 . . . . . . . . 1 . . 2 Misdirections 5 | . . . . . . . . . . . . . . . . . . . . . . . . . . 5 Weapon Failures 11 | . . . 1 . . . . . . 1 . . . . . . 1 . . . . 2 . 1 . 5 Overload Shots . | . . . . . . . . . . . . . . . . . . . . . . . . . . . Overflow Damage 6298 | . 11 2 . . . . . . 180 727 54 15 291 272 424 243 144 446 157 371 5 359 49 158 488 1902 Projectiles 402 | . 11 2 . . . . . . 68 221 . . . 6 . 32 . . . . . . . . 11 51 Explosions 171 | . . . . . . . . . . . . . . 29 . . 75 . . . . . . . 5 62 Melee 5725 | . . . . . . . . . 112 506 54 15 291 237 424 211 69 446 157 371 5 359 49 158 472 1789 Knockbacks 45 | . 2 12 5 . . . . . 1 3 . . 1 2 . 12 7 . . . . . . . . . Impact . | . . . . . . . . . . . . . . . . . . . . . . . . . . . Kinetic 41 | . 2 11 4 . . . . . 1 3 . . 1 1 . 11 7 . . . . . . . . . Secondary 4 | . . 1 1 . . . . . . . . . . 1 . 1 . . . . . . . . . . Self-Inflicted Damage 234 | . 8 . . . . . . . . . . . . 50 . . . . . . . . . . . 176 Shots 4 | . 1 . . . . . . . . . . . . 1 . . . . . . . . . . . 2 Rammed . | . . . . . . . . . . . . . . . . . . . . . . . . . . . Targets Rammed . | . . . . . . . . . . . . . . . . . . . . . . . . . . . Kicked . | . . . . . . . . . . . . . . . . . . . . . . . . . . . Crushed . | . . . . . . . . . . . . . . . . . . . . . . . . . . . Highest Temperature 450 | 6 39 68 344 184 349 74 . . 212 450 . 209 227 377 . 188 247 198 177 . 217 343 257 161 264 268 Average Temperature 81 | 6 18 19 77 53 93 24 . . 24 157 . 70 61 184 . 55 87 105 53 . 106 97 106 78 96 68 Received Heat Transfer 5240 | . 210 . 183 243 201 24 . . 201 838 90 189 438 411 12 575 268 27 78 . 33 119 . . 651 449 Effects 8 | . . . . . . . . . . 2 . 1 . 1 . . . . . . . . 4 . . . Shutdowns 2 | . . . . . . . . . . 2 . . . . . . . . . . . . . . . . Energy Bleed 2 | . . . . . . . . . . . . . . 1 . . . . . . . . 1 . . . Interference 4 | . . . . . . . . . . . . 1 . . . . . . . . . . 3 . . . Siege Activations . | . . . . . . . . . . . . . . . . . . . . . . . . . . . Martial Activations . | . . . . . . . . . . . . . . . . . . . . . . . . . . . Shielding Activations . | . . . . . . . . . . . . . . . . . . . . . . . . . . . Robots Disrupted 8 | . . . . . . . . . . . 1 1 1 . . . . . . . 1 . 1 . 2 1 Combat Hostiles 8 | . . . . . . . . . . . 1 1 1 . . . . . . . 1 . 1 . 2 1 Robots Corrupted 1 | . . . . . . . . . . . . 1 . . . . . . . . . . . . . . Combat Hostiles 1 | . . . . . . . . . . . . 1 . . . . . . . . . . . . . . Parts Fried 3 | . 1 . . . . . . . . . . 2 . . . . . . . . . . . . . . Impact Corruptions . | . . . . . . . . . . . . . . . . . . . . . . . . . . . Robots Melted . | . . . . . . . . . . . . . . . . . . . . . . . . . . . Combat Hostiles . | . . . . . . . . . . . . . . . . . . . . . . . . . . . Parts Melted 3 | . 1 . . . . . . . . . . . . . . . 1 . . . . . . . 1 . Heat Transferred 2803 | . 1260 . 481 . 629 . . . . . . . . . . . 100 . . . . 296 . . 37 . Parts Sabotaged 4 | . . . . . . . . . . 4 . . . . . . . . . . . . . . . . Parts Stolen . | . . . . . . . . . . . . . . . . . . . . . . . . . . . Parts Stripped 90 | . . . . . . . . . . . . . . . 12 . 6 . . . . . . . . 72 Power Chain Reactions 1 | . 1 . . . . . . . . . . . . . . . . . . . . . . . . . Alert | -11 -10 -10 -9 -9 -9 -9 -9 -6 -6 -6 -5 -5 -5 -5 -4 -4 -4 -4 -4 -4 -3 -3 -3 -3 -2 -1 ------- Run | Yrd Mat Min Mat Sto Gar Rec Scr Fac Gar Fac Fac Gar Fac Gar Fac Gar Fac Upp Upp Zhi Pro Res Arm Lab Res Acc Maximum Alert Level 5 | . . . 2 1 4 2 . . 4 4 2 3 2 5 3 5 5 . . . . 1 . . 3 5 Low Security (%) 31 | 100 100 100 74 84 12 . . 100 14 . . . . . . . . . . . . 88 100 . 6 . Level 1 6 | . . . 10 15 11 . . . 4 . 35 10 6 . . . . . . . . 11 . . 11 . Level 2 22 | . . . 15 . 25 100 . . 12 5 64 35 93 38 . 3 . . . . . . . . 35 29 Level 3 21 | . . . . . 20 . . . 36 65 . 53 . 22 100 28 29 . . . . . . . 46 26 Level 4 14 | . . . . . 30 . . . 31 28 . . . 34 . 40 41 . . . . . . . . 27 Level 5 2 | . . . . . . . . . . . . . . 3 . 27 28 . . . . . . . . . High Security 1 | . . . . . . . . . . . . . . . . . . . . . . . . . . 16 Max Security . | . . . . . . . . . . . . . . . . . . . . . . . . . . . Peak Influence 2102 | 10 189 137 483 323 1345 618 . 16 1428 1247 610 1016 666 1624 853 1847 1711 . . . . 336 154 . 981 2102 Initial 969 | . . 67 . 195 52 604 . . . 749 610 287 533 448 853 557 969 . . . . . 154 . . 578 Average 593 | 1 59 13 170 142 744 524 . 2 809 921 434 676 524 902 790 1310 1307 . . . . 79 69 . 649 1078 Influence Increases 18676 | 35 615 126 1128 680 1293 283 . 16 1620 1270 286 1029 549 1458 283 1310 972 350 250 15 43 665 230 . 1725 2445 Destroy 0b10 Robot/C 9680 | . 240 60 620 400 620 60 . . 760 620 140 500 360 640 120 720 280 80 200 . 40 300 160 . 1100 1660 Destroy 0b10 Robot/NC 1035 | 35 55 40 105 85 5 15 . . 10 180 45 . 45 70 30 20 25 5 5 15 . 55 . . 55 135 Destroy Leader 1672 | . 78 10 200 134 30 . . . 40 150 42 40 72 50 22 60 64 10 30 . . 80 40 . 186 334 Allied During Kill 679 | . . . . . 34 15 . . 157 . . 139 2 46 58 57 12 . . . 3 14 . . 123 19 Trap Triggered on 0b10 20 | . 20 . . . . . . . . . . . . . . . . . . . . . . . . . Successful Hack 346 | . 47 . 15 26 28 12 . 16 . 42 34 21 . 21 . 28 . . . . . 56 . . . . Select Force Hacks 270 | . 60 . 30 . . 180 . . . . . . . . . . . . . . . . . . . . Disable Machine 930 | . 60 . 120 30 15 . . . 45 150 . 30 . 15 15 30 285 . . . . 15 30 . 15 75 Anti-Garrison Action 1900 | . . . . . 450 . . . 550 . . 200 . 350 . 200 150 . . . . . . . . . Destroy Structure 1079 | . 10 16 8 5 96 1 . . 28 83 10 39 10 161 38 120 96 . . . . 40 . . 126 192 Lose Combat Pursuer 1065 | . 45 . 30 . 15 . . . 30 45 15 60 60 105 . 75 60 255 15 . . 105 . . 120 30 Influence Decreases 16635 | 35 442 299 664 1064 28 1133 495 16 192 1451 1123 423 925 472 1113 259 1140 976 643 675 43 371 416 108 760 1369 Entered New Map 7761 | . . 106 . 269 28 741 495 . . 679 637 123 483 192 773 239 878 622 201 660 . . 140 108 . 387 Time Decay 6479 | 35 412 193 514 502 . 392 . 16 . 632 486 . 422 . 150 . 222 334 422 15 43 291 246 . 530 622 Lost Part 1110 | . 30 . . 10 . . . . 90 130 . 120 20 90 . 20 . 20 20 . . 60 30 . 150 320 Lost Ally 702 | . . . . . . . . . 102 10 . 180 . 190 40 . 40 . . . . 20 . . 80 40 Purge Threat 583 | . . . 150 283 . . . . . . . . . . 150 . . . . . . . . . . . Squads Dispatched 110 | . 5 . 2 2 . . . 1 . 18 7 . 3 . 3 . 7 . . . . 6 2 . 15 39 Investigation 25 | . 4 . 1 1 . . . 1 . 5 3 . 1 . 2 . 2 . . . . . . . 3 2 Extermination 20 | . . . . . . . . . . 4 2 . 1 . . . . . . . . 2 2 . 3 6 Reinforcement 19 | . 1 . 1 1 . . . . . 5 1 . . . . . . . . . . 2 . . 4 4 Assault 32 | . . . . . . . . . . 4 1 . 1 . . . 4 . . . . 2 . . 3 17 Garrison 4 | . . . . . . . . . . . . . . . 1 . 1 . . . . . . . 2 . Intercept 10 | . . . . . . . . . . . . . . . . . . . . . . . . . . 10 Searches Triggered . | . . . . . . . . . . . . . . . . . . . . . . . . . . . Construction Impeded 4 | . . . . . . . . . . 2 1 . . . . . . . . . . . . . . 1 Haulers Reinforced 5 | . . . . . . . . . . 2 . . . . . . . . . . . 1 . . 1 1 Active Scanning Responses . | . . . . . . . . . . . . . . . . . . . . . . . . . . . Cargo Convoy Interrupts . | . . . . . . . . . . . . . . . . . . . . . . . . . . . Alert ID Control Effect 1 | . . . . . . . . . . . . . . . . . . . . . . 1 . . . . Stealth | -11 -10 -10 -9 -9 -9 -9 -9 -6 -6 -6 -5 -5 -5 -5 -4 -4 -4 -4 -4 -4 -3 -3 -3 -3 -2 -1 --------- Run | Yrd Mat Min Mat Sto Gar Rec Scr Fac Gar Fac Fac Gar Fac Gar Fac Gar Fac Upp Upp Zhi Pro Res Arm Lab Res Acc Distress Signals 10 | . 1 . . 2 . . . . . 2 . . . . . . 1 . . . . . . . 2 2 Communications Jammed . | . . . . . . . . . . . . . . . . . . . . . . . . . . . Distress Signals . | . . . . . . . . . . . . . . . . . . . . . . . . . . . Times Spotted 665 | . 28 13 45 22 21 2 . . 37 47 15 21 29 38 9 40 23 15 10 . 3 32 11 1 72 131 Peak Tracking Total 21 | . 6 3 6 6 4 1 . . 6 6 6 8 9 8 6 6 7 5 4 . 3 6 4 1 13 21 Tactical Retreats 44 | . 3 1 2 . 1 . . . 2 2 1 3 2 4 . 2 1 7 1 . . 6 . . 4 2 Traps | -11 -10 -10 -9 -9 -9 -9 -9 -6 -6 -6 -5 -5 -5 -5 -4 -4 -4 -4 -4 -4 -3 -3 -3 -3 -2 -1 ------- Run | Yrd Mat Min Mat Sto Gar Rec Scr Fac Gar Fac Fac Gar Fac Gar Fac Gar Fac Upp Upp Zhi Pro Res Arm Lab Res Acc Traps Triggered 47 | . 4 . 2 . 3 . . . 8 1 1 4 1 9 . 7 . . . . . 1 . . 2 4 Indirectly . | . . . . . . . . . . . . . . . . . . . . . . . . . . . Trap Hack Attempts 104 | . 57 . 37 10 . . . . . . . . . . . . . . . . . . . . . . Triggered . | . . . . . . . . . . . . . . . . . . . . . . . . . . . Disarmed 1 | . 1 . . . . . . . . . . . . . . . . . . . . . . . . . Reprogrammed 15 | . 8 . 5 2 . . . . . . . . . . . . . . . . . . . . . . Reused 2 | . 2 . . . . . . . . . . . . . . . . . . . . . . . . . Traps Extracted . | . . . . . . . . . . . . . . . . . . . . . . . . . . . Installed . | . . . . . . . . . . . . . . . . . . . . . . . . . . . Triggered 2 | . 2 . . . . . . . . . . . . . . . . . . . . . . . . . Most Traps Carried 3 | . . . . . . . 3 3 3 3 3 3 3 3 3 3 3 3 3 3 3 3 3 3 3 3 Machines | -11 -10 -10 -9 -9 -9 -9 -9 -6 -6 -6 -5 -5 -5 -5 -4 -4 -4 -4 -4 -4 -3 -3 -3 -3 -2 -1 ---------- Run | Yrd Mat Min Mat Sto Gar Rec Scr Fac Gar Fac Fac Gar Fac Gar Fac Gar Fac Upp Upp Zhi Pro Res Arm Lab Res Acc Machines Disabled 81 | . 4 . 8 2 7 . . . 6 10 . 4 . 5 1 4 20 . . . . 1 2 1 1 5 Max in Single Turn 16 | . 1 . 1 1 1 . . . 1 2 . 1 . 1 . 1 16 . . . . 1 1 1 1 1 Garrison Access 5 | . . . . . . . . . . . . . . . . . 1 . . . . 2 . . 1 1 Garrison Relay 14 | . . . . . 5 . . . 2 . . 2 . 3 . 2 . . . . . . . . . . Phase Generator 1 | . . . . . . . . . 1 . . . . . . . . . . . . . . . . . Machines Repaired . | . . . . . . . . . . . . . . . . . . . . . . . . . . . Machines Dismantled 1 | . . . . . . . . . 1 . . . . . . . . . . . . . . . . . Machines Sabotaged . | . . . . . . . . . . . . . . . . . . . . . . . . . . . Overloaded Fab Kills . | . . . . . . . . . . . . . . . . . . . . . . . . . . . Hacking | -11 -10 -10 -9 -9 -9 -9 -9 -6 -6 -6 -5 -5 -5 -5 -4 -4 -4 -4 -4 -4 -3 -3 -3 -3 -2 -1 --------- Run | Yrd Mat Min Mat Sto Gar Rec Scr Fac Gar Fac Fac Gar Fac Gar Fac Gar Fac Upp Upp Zhi Pro Res Arm Lab Res Acc Machines Accessed 133 | . 7 . 9 14 3 12 7 1 2 17 9 3 3 4 5 2 2 1 1 4 . 8 1 . 12 6 Terminals 76 | . 4 . 7 12 3 6 . . 2 9 5 3 1 4 2 2 2 . . . . 3 . . 8 3 Fabricators 7 | . . . . . . . . . . 2 1 . 1 . . . . . . . . 1 1 . 1 . Repair Stations 6 | . 1 . . 1 . . . . . . 2 . . . . . . . . . . 2 . . . . Recycling Units 17 | . 2 . . . . 6 . . . 4 . . . . 2 . . . . . . . . . 1 2 Scanalyzers 6 | . . . 2 . . . . . . 2 . . . . . . . . . . . 1 . . 1 . Garrison Access 8 | . . . . 1 . . . 1 . . 1 . 1 . 1 . . . . . . 1 . . 1 1 Total Hacks 314 | . 18 . 24 35 6 17 30 3 6 38 17 4 10 8 9 2 4 1 1 17 . 17 3 . 30 14 Successful 156 | . 9 . 11 22 2 9 30 2 . 13 6 3 7 2 4 2 . 1 1 17 . 4 . . 9 2 Failed 156 | . 8 . 13 13 4 7 . 1 6 25 11 1 3 6 5 . 4 . . . . 13 3 . 21 12 Catastrophic 48 | . . . 3 2 1 3 . . 2 6 3 . 1 2 1 . 3 . . . . 6 . . 9 6 Database Lockouts 2 | . 1 . . . . 1 . . . . . . . . . . . . . . . . . . . . Manual 93 | . 11 . 11 18 . 12 . 2 . 7 4 . 6 . 6 . . . . . . 4 . 1 5 6 Terminals 168 | . 12 . 15 29 6 11 . . 6 23 12 4 2 8 5 2 4 . . . . 7 . . 15 7 Fabricators 20 | . . . . . . . . . . 3 1 . 6 . . . . . . . . 2 3 . 5 . Repair Stations 10 | . 4 . . 1 . . . . . . 2 . . . . . . . . . . 3 . . . . Recycling Units 25 | . 2 . . . . 6 . . . 6 . . . . 2 . . . . . . . . . 3 6 Scanalyzers 23 | . . . 9 . . . . . . 6 . . . . . . . . . . . 3 . . 5 . Garrison Access 19 | . . . . 5 . . . 3 . . 2 . 2 . 2 . . . . . . 2 . . 2 1 Terminal Hacks 92 | . 3 . 3 13 2 3 30 . . 5 2 3 1 2 1 2 . 1 1 17 . 2 . . 1 . Record 33 | . . . . . . . 28 . . . . . . . . . . . . 5 . . . . . . Part Schematic 8 | . . . 1 . . 2 . . . . . . 1 . . . . . . 4 . . . . . . Robot Schematic 1 | . 1 . . . . . . . . . . . . . . . . . . . . . . . . . Robot Analysis 5 | . . . 1 . . . . . . . . . . . . . . . . 4 . . . . . . Prototype ID Bank 7 | . . . . 1 . 1 . . . 1 . . . . . . . . . 4 . . . . . . Open Door 11 | . . . . 6 . . 1 . . . . 1 . 1 . . . 1 1 . . . . . . . Level Access Points 2 | . . . . . . . . . . . . . . . . . . . . . . 1 . . 1 . Emergency Access Points 3 | . . . . . . . . . . . . 1 . 1 . 1 . . . . . . . . . . Terminal Index 1 | . . . . . . . . . . 1 . . . . . . . . . . . . . . . . Scanalyzer Index 1 | . . . . . . . . . . . 1 . . . . . . . . . . . . . . . Garrison Index 1 | . . . . . . . . . . . 1 . . . . . . . . . . . . . . . Alert Level 2 | . . . . 2 . . . . . . . . . . . . . . . . . . . . . . Unreport Threat 4 | . . . 1 2 . . . . . . . . . . 1 . . . . . . . . . . . Locate Traps 4 | . 1 . . 1 . . . . . 2 . . . . . . . . . . . . . . . . Hauler Manifests 3 | . 1 . . 1 . . . . . . . . . . . . . . . . . 1 . . . . Zone Layout 1 | . . . . . . . . . . 1 . . . . . . . . . . . . . . . . Garrison Registry 2 | . . . . . 1 . . . . . . . . . . 1 . . . . . . . . . . Patrol Navigation 2 | . . . . . 1 . . . . . . 1 . . . . . . . . . . . . . . Proto ID Catalog 1 | . . . . . . . 1 . . . . . . . . . . . . . . . . . . . Fabricator Hacks 7 | . . . . . . . . . . 1 1 . 3 . . . . . . . . . . . 2 . Network Status 3 | . . . . . . . . . . 1 . . 1 . . . . . . . . . . . 1 . Load Schematic 2 | . . . . . . . . . . . . . 1 . . . . . . . . . . . 1 . Build 2 | . . . . . . . . . . . 1 . 1 . . . . . . . . . . . . . Repair Station Hacks 3 | . 3 . . . . . . . . . . . . . . . . . . . . . . . . . Scan Component 1 | . 1 . . . . . . . . . . . . . . . . . . . . . . . . . Repair 1 | . 1 . . . . . . . . . . . . . . . . . . . . . . . . . Refit 1 | . 1 . . . . . . . . . . . . . . . . . . . . . . . . . Recycling Unit Hacks . | . . . . . . . . . . . . . . . . . . . . . . . . . . . Scanalyzer 15 | . . . 7 . . . . . . 3 . . . . . . . . . . . 1 . . 4 . Insert Component 8 | . . . 4 . . . . . . 2 . . . . . . . . . . . 1 . . 1 . Analyze 7 | . . . 3 . . . . . . 1 . . . . . . . . . . . . . . 3 . Garrison Access Hacks 8 | . . . . 1 . . . 1 . . 1 . 1 . 1 . . . . . . 1 . . 1 1 Unlock Access 5 | . . . . 1 . . . 1 . . 1 . 1 . 1 . . . . . . . . . . . Seal Access 3 | . . . . . . . . . . . . . . . . . . . . . . 1 . . 1 1 Unauthorized Hacks 31 | . 3 . 1 8 . 6 . 1 . 4 2 . 2 . 2 . . . . . . . . . 1 1 Terminals 5 | . 1 . . 4 . . . . . . . . . . . . . . . . . . . . . . Botnet 4 | . . . . 4 . . . . . . . . . . . . . . . . . . . . . . Skim 1 | . 1 . . . . . . . . . . . . . . . . . . . . . . . . . Fabricators 2 | . . . . . . . . . . . . . 2 . . . . . . . . . . . . . Prioritize 1 | . . . . . . . . . . . . . 1 . . . . . . . . . . . . . Haulers 1 | . . . . . . . . . . . . . 1 . . . . . . . . . . . . . Repair Stations 2 | . . . . . . . . . . . 2 . . . . . . . . . . . . . . . Patch 2 | . . . . . . . . . . . 2 . . . . . . . . . . . . . . . Recycling Units 16 | . 2 . . . . 6 . . . 4 . . . . 2 . . . . . . . . . 1 1 Tunnel 8 | . 2 . . . . 6 . . . . . . . . . . . . . . . . . . . . Fedlink 5 | . . . . . . . . . . 4 . . . . 1 . . . . . . . . . . . Scrapoids 3 | . . . . . . . . . . . . . . . 1 . . . . . . . . . 1 1 Scanalyzers 1 | . . . 1 . . . . . . . . . . . . . . . . . . . . . . . Extract 1 | . . . 1 . . . . . . . . . . . . . . . . . . . . . . . Garrison Access 5 | . . . . 4 . . . 1 . . . . . . . . . . . . . . . . . . Broadcast 1 | . . . . 1 . . . . . . . . . . . . . . . . . . . . . . Decoy 1 | . . . . 1 . . . . . . . . . . . . . . . . . . . . . . Redirect 1 | . . . . 1 . . . . . . . . . . . . . . . . . . . . . . Reprogram 1 | . . . . . . . . 1 . . . . . . . . . . . . . . . . . . Watchers 1 | . . . . 1 . . . . . . . . . . . . . . . . . . . . . . Data Cores Recovered 4 | . . . . . . . . . . 2 1 . . . 1 . . . . . . . . . . . Used 2 | . . . . . . . . . . 1 1 . . . . . . . . . . . . . . . Hacking Detections 95 | . 3 . 9 12 3 6 . 1 2 12 7 2 3 3 3 2 2 . . . . 8 1 . 11 5 Full Trace Events 16 | . . . 1 1 2 . . 1 2 1 1 . . 2 . . 2 . . . . . . . 2 1 Feedback Events 1 | . . . . . . . . 1 . . . . . . . . . . . . . . . . . . Corruption 1 | . . . . . . . . 1 . . . . . . . . . . . . . . . . . . Feedback Blocked . | . . . . . . . . . . . . . . . . . . . . . . . . . . . Robot Schematics Acquired 1 | . 1 . . . . . . . . . . . . . . . . . . . . . . . . . Robots Built . | . . . . . . . . . . . . . . . . . . . . . . . . . . . Authchips . | . . . . . . . . . . . . . . . . . . . . . . . . . . . Time . | . . . . . . . . . . . . . . . . . . . . . . . . . . . Total Robot Build Rating . | . . . . . . . . . . . . . . . . . . . . . . . . . . . Part Schematics Acquired 18 | . . . 9 . . 2 . . . 1 . . 1 . . . . . . 4 . . . . 1 . Parts Built 4 | . . . . . . . . . . . 2 . 2 . . . . . . . . . . . . . Authchips 1 | . . . . . . . . . . . . . 1 . . . . . . . . . . . . . Time 201 | . . . . . . . . . . . 117 . 84 . . . . . . . . . . . . . Total Part Build Rating 22 | . . . . . . . . . . . 14 . 8 . . . . . . . . . . . . . Parts Repaired 1 | . 1 . . . . . . . . . . . . . . . . . . . . . . . . . Time 13 | . 13 . . . . . . . . . . . . . . . . . . . . . . . . . Parts Recycled . | . . . . . . . . . . . . . . . . . . . . . . . . . . . Recycled Matter . | . . . . . . . . . . . . . . . . . . . . . . . . . . . Retrieved Matter . | . . . . . . . . . . . . . . . . . . . . . . . . . . . Retrieved Components . | . . . . . . . . . . . . . . . . . . . . . . . . . . . Parts Scanalyzed 6 | . . . 4 . . . . . . 1 . . . . . . . . . . . 1 . . . . Part Schematics Acquired 5 | . . . 3 . . . . . . 1 . . . . . . . . . . . . . . 1 . Parts Damaged 1 | . . . . . . . . . . 1 . . . . . . . . . . . . . . . . Bothacking | -11 -10 -10 -9 -9 -9 -9 -9 -6 -6 -6 -5 -5 -5 -5 -4 -4 -4 -4 -4 -4 -3 -3 -3 -3 -2 -1 ------------ Run | Yrd Mat Min Mat Sto Gar Rec Scr Fac Gar Fac Fac Gar Fac Gar Fac Gar Fac Upp Upp Zhi Pro Res Arm Lab Res Acc Used RIF Installer 5 | . . . . . . . . . 1 . . 1 . 2 . 1 . . . . . . . . . . Command Fork 1 | . . . . . . . . . . . . . . 1 . . . . . . . . . . . . Robot Detection 1 | . . . . . . . . . . . . 1 . . . . . . . . . . . . . . Watcher Feeds 1 | . . . . . . . . . . . . . . . . 1 . . . . . . . . . . Alert ID Control 1 | . . . . . . . . . . . . . . 1 . . . . . . . . . . . . Robots Hacked 36 | . 1 . 1 1 . . 11 . 1 1 1 . 9 1 . 1 1 . . . . 5 . 1 1 . Non-combat 21 | . 1 . 1 1 . . 5 . . 1 1 . 6 . . 1 1 . . . . 2 . . 1 . Combat 15 | . . . . . . . 6 . 1 . . . 3 1 . . . . . . . 3 . 1 . . Robot Hacks Applied 38 | . 1 . 1 1 . . 11 . 1 1 1 . 11 1 . 1 1 . . . . 5 . 1 1 . parse_system 19 | . 1 . 1 1 . . 11 . 1 . . . 1 1 . . . . . . . 1 . 1 . . find_chute 1 | . . . . . . . . . . . 1 . . . . . . . . . . . . . . . map_route 2 | . . . . . . . . . . . . . 1 . . . 1 . . . . . . . . . amplify_resonance 3 | . . . . . . . . . . . . . 1 . . . . . . . . 2 . . . . reboot_system 1 | . . . . . . . . . . . . . 1 . . . . . . . . . . . . . overwrite_iff 2 | . . . . . . . . . . . . . 2 . . . . . . . . . . . . . formatsys_low 9 | . . . . . . . . . . 1 . . 5 . . 1 . . . . . 1 . . 1 . formatsys_high 1 | . . . . . . . . . . . . . . . . . . . . . . 1 . . . . Relay Couplers Released 69 | . . . . . 23 . . . 9 . . 8 . 12 . 8 2 . . . . 4 . . 3 . Machine Destruction 69 | . . . . . 23 . . . 9 . . 8 . 12 . 8 2 . . . . 4 . . 3 . Attached 11 | . . . . . . . . . . 1 . . 3 . . 2 1 . . . . 3 . . 1 . Fabnet Peak Effective % . | . . . . . . . . . . . . . . . . . . . . . . . . . . . Robots Rewired 24 | . . . . . 5 . . . 2 . . 5 . 8 . 1 . . . . 1 . . . 1 1 Allies Hacked 6 | . . . . . . . . . . 1 . 1 . 2 . . . . . . . 1 . . . 1 Hacks Repelled 1 | . . . . . . . . . . . . . . . . . . . . . . . . . 1 . Allies | -11 -10 -10 -9 -9 -9 -9 -9 -6 -6 -6 -5 -5 -5 -5 -4 -4 -4 -4 -4 -4 -3 -3 -3 -3 -2 -1 -------- Run | Yrd Mat Min Mat Sto Gar Rec Scr Fac Gar Fac Fac Gar Fac Gar Fac Gar Fac Upp Upp Zhi Pro Res Arm Lab Res Acc Total Allies 58 | . . . . . 5 . . . 2 1 . 9 6 10 5 3 . . . . 1 2 . . 8 6 Largest Group 6 | . . . . . 5 4 4 4 6 1 . 6 5 5 5 5 3 . . . 1 2 . . 5 5 Highest-Rated Group 320 | . . . . . 79 45 45 45 283 23 . 306 75 296 296 235 102 . . . 58 122 . . 320 320 Highest-Rated Ally 183 | . . . . . 34 21 21 21 119 23 . 95 26 148 148 47 36 . . . 58 64 . . 64 183 Initial Warlord ECA Mod 18 | . . . . . . 9 9 . . . . . . . . . . . . . . . . . . . Total Orders 26 | . . . . . 1 . 1 . . 1 . . 1 1 . 10 4 . . . . 3 . . 1 3 STAY 9 | . . . . . 1 . 1 . . . . . . . . 3 . . . . . 1 . . . 3 FOLLOW 3 | . . . . . . . . . . . . . . . . 1 1 . . . . 1 . . . . GUARD 2 | . . . . . . . . . . . . . . . . 1 1 . . . . . . . . . AID 12 | . . . . . . . . . . 1 . . 1 1 . 5 2 . . . . 1 . . 1 . Ally Attacks 307 | . . . . . 19 7 . . 30 . . 51 6 51 22 31 . . . . 1 18 . . 63 8 Total Damage 9751 | . . . . . 1021 105 . . 1127 . . 2136 73 1296 545 578 . . . . 44 542 . . 1766 518 Kills 61 | . . . . . 9 . . . 14 . . 11 1 3 3 4 . . . . . 3 . . 10 3 Allies Corrupted 4 | . . . . . . . . . . . . . . 3 . . . . . . . 1 . . . . Allies Melted 1 | . . . . . . . . . . . . . . . . . 1 . . . . . . . . . Intel | -11 -10 -10 -9 -9 -9 -9 -9 -6 -6 -6 -5 -5 -5 -5 -4 -4 -4 -4 -4 -4 -3 -3 -3 -3 -2 -1 ------- Run | Yrd Mat Min Mat Sto Gar Rec Scr Fac Gar Fac Fac Gar Fac Gar Fac Gar Fac Upp Upp Zhi Pro Res Arm Lab Res Acc Active Infowar (turns) 15214 | 40 171 . . . 244 . . . 176 . 1153 1469 1029 1615 302 1649 466 749 1038 216 453 1313 578 311 1041 1201 Optics 13382 | . . . . . . . . . . . 1153 1469 1029 1615 302 1649 466 749 1038 216 453 1313 578 311 1041 . Traps 176 | . . . . . . . . . 176 . . . . . . . . . . . . . . . . . Seismic 455 | 40 171 . . . 244 . . . . . . . . . . . . . . . . . . . . . Machine Analysis 1201 | . . . . . . . . . . . . . . . . . . . . . . . . . . 1201 Robot Analysis Total 5 | . . . 1 . . . . . . . . . . . . . . . . 4 . . . . . . Derelict Logs Recovered 5 | . . 2 . . . . . . . . . . . . . . . 2 1 . . . . . . . Drone Launches . | . . . . . . . . . . . . . . . . . . . . . . . . . . . Drone Recoveries . | . . . . . . . . . . . . . . . . . . . . . . . . . . . Exploration | -11 -10 -10 -9 -9 -9 -9 -9 -6 -6 -6 -5 -5 -5 -5 -4 -4 -4 -4 -4 -4 -3 -3 -3 -3 -2 -1 ------------- Run | Yrd Mat Min Mat Sto Gar Rec Scr Fac Gar Fac Fac Gar Fac Gar Fac Gar Fac Upp Upp Zhi Pro Res Arm Lab Res Acc Turns Passed 34719 | 148 1716 1494 2550 1383 1789 927 3637 125 2143 2218 1277 1469 1029 1615 302 1649 466 749 1038 216 453 1313 578 311 1596 2528 Spaces Moved 20455 | 103 1128 705 1330 729 934 582 2504 32 1060 1140 804 621 543 867 201 1103 282 545 844 197 430 821 280 145 1018 1507 Core 14 | 14 . . . . . . . . . . . . . . . . . . . . . . . . . . Treads . | . . . . . . . . . . . . . . . . . . . . . . . . . . . Legs . | . . . . . . . . . . . . . . . . . . . . . . . . . . . Wheels 20441 | 89 1128 705 1330 729 934 582 2504 32 1060 1140 804 621 543 867 201 1103 282 545 844 197 430 821 280 145 1018 1507 Hover . | . . . . . . . . . . . . . . . . . . . . . . . . . . . Flight . | . . . . . . . . . . . . . . . . . . . . . . . . . . . Fastest Speed 50 | 50 80 135 140 150 150 135 135 120 120 135 125 130 123 115 120 100 110 100 110 90 100 100 121 125 95 99 Average Speed 132 | 83 117 138 151 150 150 149 139 120 153 147 129 197 141 124 122 106 110 109 110 95 100 113 160 146 110 122 Slowest Speed 365 | 100 200 140 155 150 150 150 150 120 210 365 145 220 220 165 131 150 110 110 110 100 100 175 180 163 270 204 Overloaded Moves . | . . . . . . . . . . . . . . . . . . . . . . . . . . . Propulsion Burnouts . | . . . . . . . . . . . . . . . . . . . . . . . . . . . Robots Hopped . | . . . . . . . . . . . . . . . . . . . . . . . . . . . Potential Cave-ins 2 | . . . . . . . . . . . . . . . . . . . . . . 2 . . . . Cave-ins Triggered . | . . . . . . . . . . . . . . . . . . . . . . . . . . . Teleports 2 | . . . . . . . . . . . . . . . . . . . . . . . 1 . . 1 Exploration Rate (%) 56 | 5 98 96 95 90 90 98 93 1 99 33 29 46 17 82 9 78 10 64 80 63 56 18 25 93 26 38 Regions Visited 26 Branch Regions 10 Pre-discovered Areas 14 | . 2 . . . . 6 . . . 1 . . . . . . . 1 1 3 . . . . . . Known Exits Taken 10 | . . . 1 1 . . . 1 . . 1 . 1 . 1 . 1 1 . . . . . 1 1 . Unknown Exits Taken 11 | 1 1 1 . . . 1 1 . . 1 . . . . . . . . 1 1 1 1 1 . . . Scrap Searched 14 | . . 1 . . . . 5 . . . . . . . . . . 4 3 . 1 . . . . . Spaces Dug 94 | . . . 2 1 16 . . . 5 2 . 2 1 7 . . 2 2 2 . . 15 . . 5 32 Terrain Destroyed 462 | . 2 14 6 1 16 . . . 25 96 6 4 4 31 6 24 46 3 4 . . 30 . . 50 94 Melee 20 | . . . . 1 16 . . . 2 . . . 1 . . . . . . . . . . . . . Projectile 196 | . . . 6 . . . . . 22 47 6 3 3 12 6 24 12 3 4 . . 30 . . 9 9 AOE 244 | . 2 14 . . . . . . . 49 . . . 19 . . 34 . . . . . . . 41 85 Terrain Rammed . | . . . . . . . . . . . . . . . . . . . . . . . . . . . Walls Destroyed . | . . . . . . . . . . . . . . . . . . . . . . . . . . . Machines Disabled . | . . . . . . . . . . . . . . . . . . . . . . . . . . . Actions | -11 -10 -10 -9 -9 -9 -9 -9 -6 -6 -6 -5 -5 -5 -5 -4 -4 -4 -4 -4 -4 -3 -3 -3 -3 -2 -1 --------- Run | Yrd Mat Min Mat Sto Gar Rec Scr Fac Gar Fac Fac Gar Fac Gar Fac Gar Fac Upp Upp Zhi Pro Res Arm Lab Res Acc Total 25460 | 138 1381 1155 1683 885 1117 614 2630 118 1378 1436 993 780 710 1219 234 1418 365 665 915 221 443 1084 379 215 1319 1965 Wait 1689 | . 64 369 122 40 14 13 83 82 36 77 102 25 28 71 4 75 19 92 25 . 3 115 42 18 84 86 Move 20430 | 102 1127 704 1329 728 933 581 2503 31 1059 1139 803 620 542 866 201 1102 281 544 843 196 429 820 279 144 1017 1507 Hop . | . . . . . . . . . . . . . . . . . . . . . . . . . . . Pick Up 344 | 11 25 13 41 10 4 . 9 1 41 20 10 11 11 16 4 16 3 2 8 4 . 14 10 9 16 35 Fast Attach 106 | 6 2 . 3 . 1 . 1 . 12 14 3 3 9 4 1 14 . . . 4 . 2 3 2 11 11 Attach 132 | 1 3 1 2 1 . . 5 4 13 13 5 9 4 11 3 1 . 2 2 . . 9 4 2 11 26 Detach 21 | . . . . . . 4 1 . 2 4 . 3 1 3 . . . . . . . . . . . 3 Swap 359 | 3 22 11 26 24 26 . 11 . 26 19 12 2 15 19 3 17 8 2 3 2 2 21 14 12 33 26 Drop 341 | 3 14 17 44 16 5 4 6 . 35 22 17 6 15 13 3 35 2 . 4 8 . 11 8 6 16 31 Fire 831 | 12 66 40 78 52 64 12 . . 66 71 10 53 25 52 7 46 22 3 3 . 4 56 7 8 24 50 Melee 856 | . 1 . 1 4 32 . 11 . 47 57 31 16 60 89 8 70 30 20 27 7 5 36 12 14 107 171 Ram . | . . . . . . . . . . . . . . . . . . . . . . . . . . . Kick . | . . . . . . . . . . . . . . . . . . . . . . . . . . . Crush . | . . . . . . . . . . . . . . . . . . . . . . . . . . . Escape Stasis 177 | . . . . . 16 . . . 32 . . 32 . 36 . 42 . . . . . . . . . 19 Rewire 61 | . . . . . 22 . . . . . . . . 39 . . . . . . . . . . . . Trap 104 | . 57 . 37 10 . . . . . . . . . . . . . . . . . . . . . . Miscellaneous 9 | . . . . . . . . . 9 . . . . . . . . . . . . . . . . . Route ------- -11/Scrapyard -10/Materials (discovered 4 exits: *Mat x3 / [*Min]) -10/Mines (discovered 2 exits: *Mat x2) -9/Materials (discovered 6 exits: *Mat x3 / *Min x2 / *Sto) -9/Storage (discovered 3 exits: *Mat / *Rec / Gar) -9/Garrison (discovered 3 exits: *Rec x3) -9/Recycling (discovered 2 exits: [*Fac] / *Scr) -9/Scraptown (discovered 2 exits: *Fac x2) -6/Factory -6/Garrison (discovered 3 exits: *Fac x3) -6/Factory (discovered 4 exits: *Fac x2 / [*Low x2]) -5/Factory (discovered 3 exits: [*Upp x2] / Gar) -5/Garrison -5/Factory -5/Garrison (discovered 2 exits: *Fac x2) -4/Factory -4/Garrison (discovered 3 exits: *Fac x3) -4/Factory -4/Upper Caves -4/Upper Caves (discovered 2 exits: *Res / *Zhi) -4/Zhirov -3/Proximity Caves -3/Research (discovered 4 exits: Res x3 / *Arm) -3/Armory (discovered 2 exits: *Res / *Lab) -3/Lab -2/Research (discovered 3 exits: *Acc x3) -1/Access History --------- Turn | Location | Event 12 | -11/Scrapyard | Discovered new exit (range 15) 149 | -11/Scrapyard | Entered Materials 305 | -10/Materials | Discovered new exit (range 9) 315 | -10/Materials | Build established: Mutant 646 | -10/Materials | Lost 3 parts (1p1n1w) 912 | -10/Materials | Discovered new exit (range 14) 1089 | -10/Materials | Discovered new exit (range 13) 1288 | -10/Materials | Discovered new exit (range 15) 1525 | -10/Materials | Core integrity fell below 50% 1628 | -10/Materials | Central database locked down 1718 | -10/Materials | Repaired Beam Cannon 1865 | -10/Materials | Entered Mines 1934 | -10/Mines | Met a Derelict bent on vengeance 1949 | -10/Mines | Assembled infested the area 1954 | -10/Mines | Assisted by a Guerilla fighting off Assembled 2403 | -10/Mines | Joined a pair of Derelicts in attacking an 0b10 outpost 2546 | -10/Mines | Learned 2 Materials zone layouts 2647 | -10/Mines | Discovered new exit (range 7) 2823 | -10/Mines | Core integrity fell below 20% 2932 | -10/Mines | Discovered new exit (range 10) 3276 | -10/Mines | Learned location of 1 exit from Materials 3359 | -10/Mines | Entered Materials 3359 | -9/Materials | Evolved 2 slots: Weapon x2 3360 | -9/Materials | Identified exit to Storage 3361 | -9/Materials | Identified exit to Mines 3361 | -9/Materials | Identified exit to Materials 4238 | -9/Materials | Build established: Tank 4614 | -9/Materials | Discovered exit to Materials (range 15) 4964 | -9/Materials | Discovered exit to Materials (range 12) 5750 | -9/Materials | Discovered exit to Mines (range 10) 5909 | -9/Materials | Entered Storage 6255 | -9/Storage | Used back door to open Recycling access 6255 | -9/Storage | Discovered new exit (range 5) 6950 | -9/Storage | Identified exit to Garrison 7011 | -9/Storage | Build established: Gunner 7096 | -9/Storage | Discovered exit to Materials (range 5) 7292 | -9/Storage | Entered Garrison 7390 | -9/Garrison | Triggered checkpoint 7416 | -9/Garrison | Garrison Relay disabled 7503 | -9/Garrison | Triggered checkpoint 7526 | -9/Garrison | Triggered checkpoint 7564 | -9/Garrison | Destroyed 7 combat bots 7830 | -9/Garrison | Discovered new exit (range 10) 7918 | -9/Garrison | Triggered checkpoint 7953 | -9/Garrison | Garrison Relay disabled 8089 | -9/Garrison | Triggered checkpoint 8137 | -9/Garrison | Triggered checkpoint 8216 | -9/Garrison | Triggered checkpoint 8252 | -9/Garrison | Garrison Relay disabled 8312 | -9/Garrison | Discovered new exit (range 9) 8490 | -9/Garrison | Discovered new exit (range 8) 8507 | -9/Garrison | Discovered new exit (range 7) 8507 | -9/Garrison | Discovered new exit (range 44) 8507 | -9/Garrison | Discovered new exit (range 70) 8612 | -9/Garrison | Garrison Relay disabled 8712 | -9/Garrison | Triggered checkpoint 8904 | -9/Garrison | Garrison Relay disabled 9022 | -9/Garrison | Build established: Commander-Gunner 9081 | -9/Garrison | Entered Recycling 9081 | -9/Recycling | Accompanied by 4 allies 9432 | -9/Recycling | Discovered new exit (range 14) 9963 | -9/Recycling | Scanned before Scraplab entrance 9982 | -9/Recycling | Entered Scraplab 9993 | -9/Recycling | Discovered new exit (range 2) 10008 | -9/Recycling | Entered Scraptown 10008 | -9/Scraptown | Accompanied by 4 allies 10008 | -9/Scraptown | System corruption cleaned by C-Scrubber 10257 | -9/Scraptown | Build established: Commander-Mutant 10271 | -9/Scraptown | Discovered new exit (range 7) 10407 | -9/Scraptown | Visited Cyclists 10418 | -9/Scraptown | Visited SPCMW 10442 | -9/Scraptown | Visited Scrapoid Research Area 10549 | -9/Scraptown | Visited CR-KLE's Repair Center 10589 | -9/Scraptown | Visited Symbiants 10761 | -9/Scraptown | Heard Great Nut preacher, LISTEN AND RECITE! 10824 | -9/Scraptown | Visited Comm Corps 10875 | -9/Scraptown | Visited Science Testing Area 10893 | -9/Scraptown | Visited UFD Registry 10893 | -9/Scraptown | Registered with UFD as "Shadowbox" 10938 | -9/Scraptown | Visited LU-1G1's Boring Crew 10993 | -9/Scraptown | Visited Infowarlord's Domain 11015 | -9/Scraptown | Visited Abandonware Association 11031 | -9/Scraptown | Learned abandonware demo "POISON.EXE" 11103 | -9/Scraptown | Visited Science Guys 11145 | -9/Scraptown | Visited A0-MCA Data Center 11187 | -9/Scraptown | Visited Derelict Rescue Squad 11226 | -9/Scraptown | Visited Curators Association 11425 | -9/Scraptown | Visited DA-N13 Charitable Foundation 11439 | -9/Scraptown | Found DCF Scrap (28 items) 11464 | -9/Scraptown | Visited Chapter 10 11483 | -9/Scraptown | Visited Sword Containment 11682 | -9/Scraptown | Discovered new exit (range 5) 12041 | -9/Scraptown | Entered Cyclist Reading Room 12381 | -9/Scraptown | Given a B rating by A0-MCA 12384 | -9/Scraptown | Found A0-MCA's Component Scanner 12589 | -9/Scraptown | Build established: Commander-Gunner 12803 | -9/Scraptown | Found Spectral Analyzer 13152 | -9/Scraptown | Found DRS Beacon 13566 | -9/Scraptown | Met Optimus 13566 | -9/Scraptown | Accepted into 0bPrime 13645 | -9/Scraptown | Entered Factory 13645 | -6/Factory | Accompanied by 4 allies 13645 | -6/Factory | Evolved 6 slots: Propulsion x2, Utility x4 13666 | -6/Factory | Identified exit to Garrison 13770 | -6/Factory | Entered Garrison 13770 | -6/Garrison | Accompanied by 4 allies 13810 | -6/Garrison | Rewired Executioner 13822 | -6/Garrison | Rewired Executioner 13909 | -6/Garrison | Lost 3 allies 13928 | -6/Garrison | Triggered checkpoint 13947 | -6/Garrison | Garrison Relay disabled 14077 | -6/Garrison | Phase Generator disabled 14164 | -6/Garrison | Triggered checkpoint 14169 | -6/Garrison | Triggered checkpoint 14197 | -6/Garrison | Found Adv. Kinecellerator 14208 | -6/Garrison | Found Exp. Core Analyzer 14214 | -6/Garrison | Found Exp. Core Analyzer 14223 | -6/Garrison | Lost 3 allies 14242 | -6/Garrison | Found Exp. Core Analyzer 14248 | -6/Garrison | Found Adv. Kinecellerator 14286 | -6/Garrison | Found Exp. Targeting Computer 14293 | -6/Garrison | Found Exp. Targeting Computer 14305 | -6/Garrison | Triggered checkpoint 14503 | -6/Garrison | Lost 4 parts (1p2n1w) 14581 | -6/Garrison | Heavy support dispatched to Factory 14597 | -6/Garrison | Garrison Relay disabled 14624 | -6/Garrison | Installed Relay Interface Framework 14689 | -6/Garrison | Heavy support dispatched to Factory 14692 | -6/Garrison | Triggered checkpoint 14700 | -6/Garrison | Discovered new exit (range 11) 14771 | -6/Garrison | Build established: Hauler-Gunner 14792 | -6/Garrison | Triggered checkpoint 14898 | -6/Garrison | Heavy support dispatched to Factory 14956 | -6/Garrison | Discovered new exit (range 5) 15222 | -6/Garrison | Triggered checkpoint 15287 | -6/Garrison | Discovered new exit (range 8) 15350 | -6/Garrison | H-XX Assembler disabled 15359 | -6/Garrison | Build established: Scavenger-Gunner 15659 | -6/Garrison | Build established: Hauler-Gunner 15913 | -6/Garrison | Entered Factory 16009 | -6/Factory | Loaded intel: 8 recycling unit locations 16171 | -6/Factory | Discovered new exit (range 16) 16613 | -6/Factory | First assault squad dispatched 16641 | -6/Factory | Discovered new exit (range 4) 16648 | -6/Factory | Build established: Scavenger-Gunner 17033 | -6/Factory | Discovered new exit (range 11) 17195 | -6/Factory | Learned location of Protoforge (-2) 17341 | -6/Factory | Core integrity fell below 50% 17440 | -6/Factory | Lost 5 parts (4n1w) 18048 | -6/Factory | Discovered new exit (range 16) 18131 | -6/Factory | Entered another Factory area 18131 | -5/Factory | Evolved 2 slots: Utility x2 18656 | -5/Factory | Fabricated Graphene Brace (x2) 19058 | -5/Factory | Discovered new exit (range 14) 19331 | -5/Factory | First assault squad dispatched 19395 | -5/Factory | Identified exit to Garrison 19402 | -5/Factory | Discovered new exit (range 4) 19408 | -5/Factory | Entered Garrison 19482 | -5/Garrison | Triggered checkpoint 19551 | -5/Garrison | Lost 7 parts (3n1u3w) 19566 | -5/Garrison | Garrison Relay disabled 19570 | -5/Garrison | Triggered checkpoint 19768 | -5/Garrison | Lost 5 parts (2n1u2w) 19768 | -5/Garrison | Rescued a captive Derelict 19768 | -5/Garrison | Rescued a captive Derelict 19881 | -5/Garrison | Found embedded Infiltrators 19942 | -5/Garrison | Triggered checkpoint 19995 | -5/Garrison | Garrison Relay disabled 20376 | -5/Garrison | Triggered checkpoint 20426 | -5/Garrison | Lost 4 allies 20485 | -5/Garrison | Triggered checkpoint 20590 | -5/Garrison | Discovered new exit (range 12) 20618 | -5/Garrison | Triggered checkpoint 20713 | -5/Garrison | Expanded RIF knowledge: Robot Detection 20877 | -5/Garrison | Entered Factory 21260 | -5/Factory | Fabricated Arm. Huge Wheel (x2) 21557 | -5/Factory | Build established: Bothacker-Gunner 21777 | -5/Factory | First assault squad dispatched 21830 | -5/Factory | Core integrity fell below 50% 21852 | -5/Factory | Identified exit to Garrison 21906 | -5/Factory | Entered Garrison 21906 | -5/Garrison | Accompanied by 5 allies 22254 | -5/Garrison | Build established: Scavenger-Gunner 22266 | -5/Garrison | Lost 5 allies 22377 | -5/Garrison | Spotted B-75 Beast 22396 | -5/Garrison | Lost 3 allies 22409 | -5/Garrison | Destroyed B-75 Beast 22429 | -5/Garrison | Lost 3 parts (1n1u1w) 22521 | -5/Garrison | Forged Quantum Companion 22670 | -5/Garrison | Triggered checkpoint 22788 | -5/Garrison | Garrison Relay disabled 22813 | -5/Garrison | Expanded RIF knowledge: Alert ID Control 22899 | -5/Garrison | Triggered checkpoint 22926 | -5/Garrison | Destroyed 8 combat bots 22959 | -5/Garrison | Discovered new exit (range 8) 22999 | -5/Garrison | Found embedded Infiltrators 23002 | -5/Garrison | Garrison Relay disabled 23036 | -5/Garrison | Triggered checkpoint 23120 | -5/Garrison | Spotted B-75 Beast 23143 | -5/Garrison | Rewired B-90 Cyclops 23145 | -5/Garrison | Rewired B-90 Cyclops 23283 | -5/Garrison | Discovered new exit (range 13) 23324 | -5/Garrison | Expanded RIF knowledge: Command Fork 23387 | -5/Garrison | Garrison Relay disabled 23398 | -5/Garrison | Triggered checkpoint 23521 | -5/Garrison | Entered Factory 23521 | -4/Factory | Accompanied by 2 allies 23521 | -4/Factory | Evolved 2 slots: Power x1, Utility x1 23584 | -4/Factory | Loaded intel: 8 recycling unit locations 23758 | -4/Factory | Scrapoid reinforcements arrived 23771 | -4/Factory | Garrison activated, responded to threat 23821 | -4/Factory | Identified exit to Garrison 23823 | -4/Factory | Entered Garrison 23823 | -4/Garrison | Accompanied by 5 allies 23928 | -4/Garrison | Found Scrap Suit 23941 | -4/Garrison | Murdered 4 allies 23960 | -4/Garrison | Found Scrap Suit 23962 | -4/Garrison | Found Scrap Suit 23979 | -4/Garrison | Triggered checkpoint 24036 | -4/Garrison | Garrison Relay disabled 24232 | -4/Garrison | Build established: Scavenger-Scrapper 24238 | -4/Garrison | Found Scrap Suit 24248 | -4/Garrison | Spotted B-86 Titan 24292 | -4/Garrison | Destroyed B-86 Titan 24439 | -4/Garrison | Triggered checkpoint 24565 | -4/Garrison | Discovered new exit (range 10) 24575 | -4/Garrison | Spotted B-86 Titan 24595 | -4/Garrison | Spotted B-86 Titan 24609 | -4/Garrison | Destroyed B-86 Titan 24694 | -4/Garrison | Garrison Relay disabled 24714 | -4/Garrison | Triggered checkpoint 24879 | -4/Garrison | Triggered checkpoint 25043 | -4/Garrison | Triggered checkpoint 25084 | -4/Garrison | Discovered new exit (range 22) 25152 | -4/Garrison | Expanded RIF knowledge: Watcher Feeds 25181 | -4/Garrison | Discovered new exit (range 70) 25181 | -4/Garrison | Discovered new exit (range 12) 25181 | -4/Garrison | Discovered new exit (range 73) 25472 | -4/Garrison | Entered Factory 25472 | -4/Factory | Accompanied by 3 allies 25594 | -4/Factory | Garrison activated, responded to threat 25722 | -4/Factory | First assault squad dispatched 25908 | -4/Factory | Discovered new exit (range 23) 25935 | -4/Factory | Identified exit to Upper Caves 25938 | -4/Factory | Entered Upper Caves 26273 | -4/Upper Caves | Spotted B-86 Titan 26459 | -4/Upper Caves | Discovered new exit (range 21) 26466 | -4/Upper Caves | Core integrity fell below 50% 26502 | -4/Upper Caves | Encountered a Warlord checkpoint 26527 | -4/Upper Caves | Identified exit to Upper Caves 26549 | -4/Upper Caves | Learned 4 Research zone layouts 26687 | -4/Upper Caves | Entered another Upper Caves area 26769 | -4/Upper Caves | Discovered new exit (range 13) 27384 | -4/Upper Caves | Learned location of Quarantine (-3) 27542 | -4/Upper Caves | Discovered new exit (range 8) 27725 | -4/Upper Caves | Entered Zhirov 27728 | -4/Zhirov | Discovered new exit (range 3) 27746 | -4/Zhirov | Met Zhirov 27782 | -4/Zhirov | Zhirov requested help retrieving the SGEMP Prototype 27799 | -4/Zhirov | Found Alien Artifact 27799 | -4/Zhirov | Identified Integrated Reactor 27799 | -4/Zhirov | Installed Integrated Reactor, increased core energy generation (+10) 27872 | -4/Zhirov | Found Alien Artifact 27941 | -4/Zhirov | Entered Proximity Caves 28169 | -3/Proximity Caves | Discovered new exit (range 16) 28394 | -3/Proximity Caves | Entered Research 28394 | -3/Research | Accompanied by 1 ally 28394 | -3/Research | Evolved 2 slots: Utility x2 28698 | -3/Research | Build established: Scavenger-Gunner 29192 | -3/Research | Identified exit to Research 29214 | -3/Research | Discovered new exit (range 24) 29707 | -3/Research | Entered Armory 29738 | -3/Armory | Lost 3 parts (1n1u1w) 29753 | -3/Armory | Found Gamma Bomb Array 29756 | -3/Armory | Found Gamma Bomb Array 29767 | -3/Armory | Found Gamma Bomb Array 29856 | -3/Armory | Found Prototype Processor 29856 | -3/Armory | Identified Exp. Melee Analysis Suite 29874 | -3/Armory | Found Exp. Melee Analysis Suite 29877 | -3/Armory | Found Exp. Melee Analysis Suite 29881 | -3/Armory | Found Exp. Melee Analysis Suite 29884 | -3/Armory | Found Exp. Melee Analysis Suite 29888 | -3/Armory | Found Exp. Melee Analysis Suite 29922 | -3/Armory | System corruption reached 10% 30259 | -3/Armory | Discovered exit to Research (range 18) 30281 | -3/Armory | Identified Transdimensional Reconstructor 30281 | -3/Armory | Warped through subspace to slip node 30281 | -3/Armory | Discovered new exit (range 1) 30285 | -3/Armory | Entered Lab 30285 | -3/Lab | Discovered exit to Research (range 9) 30306 | -3/Lab | Unable to decrypt terminal 30306 | -3/Lab | Opened the door to a hidden lab 30307 | -3/Lab | Gained access to the hidden lab's interior 30336 | -3/Lab | Found Transdimensional Reconstructor 30348 | -3/Lab | Found Integrated Reactor 30348 | -3/Lab | Installed Integrated Reactor, increased core energy generation (+10) 30360 | -3/Lab | Found Alien Artifact 30386 | -3/Lab | Detected by scanners 30413 | -3/Lab | Confronted by A5 30457 | -3/Lab | Destroyed A5 30477 | -3/Lab | Found Prototype Energy Gun 30477 | -3/Lab | Identified Hyp. EM Gauss Rifle 30483 | -3/Lab | Found Prototype Energy Gun 30483 | -3/Lab | Identified Tachyon Dispersion Ray 30491 | -3/Lab | Found Prototype Device 30491 | -3/Lab | Identified AEGIS Remote Shield 30501 | -3/Lab | Found Prototype Hackware 30523 | -3/Lab | Found Exp. System Shield 30555 | -3/Lab | Found Prototype Special Weapon 30555 | -3/Lab | Identified Gui. Remote Datajack 30596 | -3/Lab | Entered Research 30596 | -2/Research | Evolved 2 slots: Power x1, Utility x1 30619 | -2/Research | Identified Quantum Router 30662 | -2/Research | Garrison activated, responded to threat 30694 | -2/Research | Scrapoids reinforcements arrived? 30738 | -2/Research | Lost 3 allies 30739 | -2/Research | Lost 8 parts (2p1n2u3w) 30743 | -2/Research | Found Scrap Suit 30753 | -2/Research | Found Scrap Suit 30767 | -2/Research | Identified Core Regenerator 30767 | -2/Research | Used Core Regenerator, restored core integrity (+362) 31072 | -2/Research | Build established: Scavenger-Scrapper 31346 | -2/Research | First assault squad dispatched 31957 | -2/Research | Identified exit to Access 32027 | -2/Research | System corruption reached 10% 32192 | -2/Research | Entered Access 32192 | -1/Access | Evolved 2 slots: Utility x2 32488 | -1/Access | Build established: Scavenger-Gladiator 33018 | -1/Access | Intercept squad dispatched 33030 | -1/Access | Spotted Tracker 33031 | -1/Access | Spotted Tracker 33043 | -1/Access | Destroyed Tracker 33049 | -1/Access | Destroyed Tracker 33061 | -1/Access | Spotted Combat Programmer 33072 | -1/Access | Spotted Combat Programmer 33080 | -1/Access | Destroyed Combat Programmer 33089 | -1/Access | Destroyed Combat Programmer 33115 | -1/Access | Lost 6 parts (3p1n1u1w) 33145 | -1/Access | Scrapoid reinforcements arrived 33185 | -1/Access | Found Scrap Suit 33211 | -1/Access | Found Scrap Suit 33226 | -1/Access | System corruption reached 10% 33229 | -1/Access | Murdered 4 allies 33270 | -1/Access | Destroyed 7 combat bots 33273 | -1/Access | Lost 5 parts (1p1n1u2w) 33502 | -1/Access | Found Prototype Device 33607 | -1/Access | Intercept squad dispatched 33653 | -1/Access | Spotted Tracker 33653 | -1/Access | Spotted Tracker 33663 | -1/Access | Destroyed Tracker 33667 | -1/Access | Destroyed Tracker 33692 | -1/Access | First assault squad dispatched 33698 | -1/Access | Spotted Combat Programmer 33706 | -1/Access | Destroyed Combat Programmer 33715 | -1/Access | Spotted Combat Programmer 33723 | -1/Access | Destroyed Combat Programmer 33970 | -1/Access | Build established: Scavenger-Gunner 34303 | -1/Access | High security lockdown imminent 34383 | -1/Access | High security lockdown engaged 34514 | -1/Access | Destroyed 8 combat bots 34598 | -1/Access | System corruption reached 30% 34603 | -1/Access | Warped through subspace 34604 | -1/Access | Core integrity fell below 50% 34617 | -1/Access | Destroyed 11 combat bots 34682 | -1/Access | Intercept squad dispatched 34690 | -1/Access | Scanned by Researcher 34690 | -1/Access | Spotted Investigator 34690 | -1/Access | Spotted Striker 34696 | -1/Access | Spotted Tracker 34697 | -1/Access | Spotted Tracker 34697 | -1/Access | Spotted Tracker 34708 | -1/Access | Spotted Combat Programmer 34708 | -1/Access | Destroyed Striker 34714 | -1/Access | Core integrity fell below 20% 34715 | -1/Access | Identified Exp. EM Shield 34718 | -1/Access | Released all parts (10) 34720 | -1/Access | Destroyed by X-87 Electro with Compact HERF Cannon Last Messages --------------- 34717_ Penetrated by Slug. 34717_ Knocked back. 34717_ Investigator stasis bubble strength at 101. 34718_ Investigator stasis bubble strength at 92. 34718_ EMDS Slug penetrates I-47 Archangel. 34718_ G-73 Enforcer destroyed. 34718_ Released Graphene Brace. 34718_ Released Exp. Melee Analysis Suite. 34718_ Released Huge Storage Unit. 34718_ Released Exp. Core Analyzer. 34718_ Released Quantum Companion. 34718_ Released Exp. Core Analyzer. 34718_ Released Adv. Melee Analysis Suite. 34718_ Released Machine Analyzer. 34718_ Released A0-MCA's Component Scanner. 34718_ Stasis bubble strength at 164. 34719_ Investigator stasis bubble strength at 83. 34719_ U-05 Engineer builds a Wall. 34719_ Stasis bubble strength at 158. 34720_ Investigator stasis bubble strength at 74. Map ----- +----------------------------------------------------+ | ############### #????????# #??????????? | | #/##########???????????????# #??????????? | | + #???????????????# #??????????? | | ## #???????????????# #??????????? | | ## #??????????????? ??????????? | | ## #??????????????? ??????????? | | ##### ## #??????????????# ??????????? | | ????# ## #??????????????# ??????????? | | ????# ## #??????????????? ???????????? | | ????# ## #??????????????????????????????? | | ????+ # #??????????????????????????????? | | ????# # #????#+#####???????????????????? | | ????# # # ??? #?????????????????? | | ????# + # ??? #?????????????????? | | ????# # # """ #?????????????????? | | ????# # # """ #?????????????????? | | ????# # # """ #?????????????????? | | ????# ############ "S #?????????????????? | | ????# ## "" #?????????????????? | | ????# ## " #?????????????????? | | ????# ## #?????????????????? | | ????# ## #?????????????????? | | ????# === ## ] #?????????????????? | | ???## ==! # /%|!] ??????????????????? | | ???# ==! /!!%########??????????????? | | ???# c H!%l@!!* "???????????? | | ???# % g%s=s/== "???????????? | | ???# % !s%|###########T#???????????? | | ???############ %# i ??????????????????????? | | ??????????????# # ! ?????????????????????? | | ??????????????# %# %p #????????????????????? | | ??????????????# # p!! #????????????????????? | | ??????????????# # % #????????????????????? | | ??????????????# ##! % #????????????????????? | | ?????????????# #m #????????????????????? | | ????????????? ! p #????????????????????? | | ???????????? # ###????????????????????? | | ???????????### # ###??????????????????????? | | ?????????????########x###????????????????????????? | | ???????????????????? ????????"""G"""????????????? | | ????????????????????? ????????"""?"""????????????? | | ?????????????????????????????????????????????????? | | ?????????????????????????????????????????????????? | | ?????????????????????????????????????????????????? | | ???????????????????????????????""""""????????????? | | ???????????????????????????????""""""????????????? | | ???????????????????????????????""""""????????????? | | ???????????????????????????????""""""????????????? | | ???????????????????????????????""""""????????????? | | ?????????????????????????????????????????????????? | +----------------------------------------------------+ Best States ------------- Heat Dissipation 77 Energy Generation 85 Energy Capacity 825 Matter Stores 300 Matter Capacity 300 Sight Range 24 Terrain Scan Density 85 Armor Coverage 825 Melee Speed Boost 20 Phase Shifting 5 Evasion (%) 50 Targeting Accuracy 24 Melee Accuracy 68 Core Analysis 12 Salvage Targeting 1 Offensive Hacking 14 Defensive Hacking 25 Relay Coupler Types 2 Relay Coupler Value 31 Authchip Count 1 Trap Extractor Capacity 4 Item Schematics ----------------- Com. Wheel | -9/Materials | Scanalyzed Assault Rifle | -9/Materials | Scanalyzed Flail | -9/Materials | Extracted Sml. Storage Unit | -9/Materials | Extracted Sml. Matter Pod | -9/Materials | Extracted Propulsion Shielding | -9/Materials | Extracted Arm. Wheel | -9/Materials | Extracted Hcp. Storage Unit | -9/Materials | Hacked Cryofiber Web | -9/Materials | Scanalyzed Huge Storage Unit | -9/Recycling | Hacked Cargo Storage Unit | -9/Recycling | Hacked Hvy. Linear Accelerator | -6/Factory | Scanalyzed Arm. Huge Wheel | -5/Factory | Hacked Assault Drone Bay | -4/Zhirov | Free Exp. Heat Sink | -4/Zhirov | Free Exp. Optical Array | -4/Zhirov | Free Imp. Arc Thrower | -4/Zhirov | Free Centrium Wheel | -2/Research | Scanalyzed Robot Schematics ------------------ M-13 Machinist | -10/Materials | Hacked Fabricated ------------ Graphene Brace | x2 | -5/Factory | Preloaded Arm. Huge Wheel | x2 | -5/Factory | Authchip Repaired ---------- Beam Cannon | 36% | -10/Materials Alien Tech Used ----------------- Integrated Reactor Transdimensional Reconstructor Core Regenerator Achievements -------------- Gladiator Challenges ------------ None Game ------ Seed StrikeSmallSegregator Manual? 0 Play Time 05:26:21 Cumulative 1169.7 hours Start 2025.07.31 @ 21:19:06 End 2025.08.01 @ 19:04:10 Sessions 12 Manual Loads 0 Difficulty Rogue Special Mode None Game No. 564 Rogue 564 Adventurer 0 Explorer 0 Win Type - Total 23 Types 10/4/3/0/1/1/2/2/0/0 Lore% 90 Gallery% 90 Achievement% 84 Wizard Run 0 Options --------- Layout 0 ASCII 0 Keyboard 0 Movement Numpad Keybinds 0 Fullscreen 2 Font 24/Smallcaps Map View 76x50 Zoom Use 0% Tactical HUD 1 Map Filters NONE Filters SHIFT_HUE(315) Steam 1 RUN: 240a5278-073d-486c-a53e-63982ee16978